fUSD/lending_fUSD_20250610
["ID","MTS","AMOUNT","RATE_DAILY","PERIOD"]
[365247924,1749563441131,-490.0,0.00017424,2]
[365247926,1749563441140,-490.0,0.00017424,2]
[365247928,1749563441150,-252.01915905,0.00017424,2]
[365247930,1749563441163,-237.98084095,0.00017424,2]
[365247932,1749563441171,-654.31,0.00017424,2]
[365247934,1749563441180,-490.0,0.00017424,2]
[365247936,1749563441190,-778.24,0.00017424,2]
[365247938,1749563441199,-490.0,0.00017424,2]
[365247940,1749563441208,-2525.9,0.00017424,2]
[365247942,1749563441217,-490.0,0.00017424,2]
[365247944,1749563441226,-490.0,0.00017424,2]
[365247946,1749563441236,-490.0,0.00017424,2]
[365247948,1749563441245,-490.0,0.00017424,2]
[365247950,1749563441254,-1000.0,0.00017457,2]
[365247952,1749563441263,-207.4,0.00017457,2]
[365247954,1749563441274,-1957.856,0.00017457,2]
[365247956,1749563441283,-155.31328115,0.00017457,2]
[365247958,1749563441293,-500.0,0.00017457,2]
[365247960,1749563441302,-500.0,0.00017457,2]
[365247962,1749563441318,-500.0,0.00017457,2]
[365247964,1749563441331,-500.0,0.00017457,2]
[365247966,1749563441341,-540.79795699,0.00017457,2]
[365247968,1749563441351,-300.0,0.00017457,2]
[365247970,1749563441361,-151.0,0.00017457,2]
[365247972,1749563441371,-2030.296672,0.00017512,2]
[365247974,1749563441380,-796.87,0.00017555,2]
[365247975,1749563441390,-833.29909032,0.00017557,2]
[365247977,1749563441399,-2105.41764886,0.00017567,2]
[365247979,1749563441408,-490.0,0.00017589,2]
[365247981,1749563441417,-490.0,0.00017589,2]
[365247983,1749563441426,-607.13,0.00017589,2]
[365247985,1749563441435,-490.0,0.00017589,2]
[365247987,1749563441444,-490.0,0.00017589,2]
[365247989,1749563441453,-490.0,0.00017589,2]
[365247991,1749563441462,-490.0,0.00017589,2]
[365247993,1749563441470,-654.31,0.00017589,2]
[365247995,1749563441480,-490.0,0.00017589,2]
[365247997,1749563441489,-778.24,0.00017589,2]
[365247999,1749563441499,-202.76,0.00017589,2]
[365248001,1749563441508,-2525.9,0.00017589,2]
[365248003,1749563441519,-490.0,0.00017589,2]
[365248005,1749563441528,-490.0,0.00017589,2]
[365248007,1749563441537,-490.0,0.00017589,2]
[365248009,1749563441546,-490.0,0.00017589,2]
[365248011,1749563441556,-314.0,0.00017603,3]
[365248013,1749563441564,-2183.31810187,0.00017622,2]
[365248015,1749563441574,-250.0,0.00017647,2]
[365248017,1749563441583,-250.0,0.00017647,2]
[365248019,1749563441592,-5000.0,0.00017653,2]
[365248021,1749563441601,-2264.10087164,0.00017677,2]
[365248023,1749563441611,-600.0,0.00017691,4]
[365248025,1749563441620,-300.0,0.00017691,2]
[365248027,1749563441629,-2347.87260389,0.00017732,2]
[365248029,1749563441638,-500.0,0.00017752,2]
[365248031,1749563441647,-359.45,0.00017753,2]
[365248033,1749563441656,-490.0,0.00017753,2]
[365248035,1749563441665,-607.13,0.00017753,2]
[365248037,1749563441674,-490.0,0.00017753,2]
[365248039,1749563441683,-490.0,0.00017753,2]
[365248041,1749563441693,-490.0,0.00017753,2]
[365248043,1749563441702,-654.31,0.00017753,2]
[365248045,1749563441711,-434.08392617,0.00017753,2]
[365248047,1749563441720,-778.24,0.00017753,2]
[365248049,1749563441729,-2525.9,0.00017753,2]
[365248051,1749563441738,-490.0,0.00017753,2]
[365248053,1749563441747,-490.0,0.00017753,2]
[365248055,1749563441756,-490.0,0.00017753,2]
[365248057,1749563441765,-490.0,0.00017753,2]
[365248059,1749563441776,-2434.74389024,0.00017787,2]
[365248061,1749563441786,-700.0,0.000178,3]
[365248063,1749563441795,-190.37380644,0.0001783,2]
[365248065,1749563441804,-6.42238861,0.0001783,2]
[365248067,1749563441816,-493.57761139,0.0001783,2]
[365248069,1749563441825,-500.0,0.0001783,2]
[365248071,1749563441836,-500.0,0.0001783,2]
[365248073,1749563441845,-500.0,0.0001783,2]
[365248075,1749563441854,-500.0,0.0001783,2]
[365248077,1749563441863,-500.0,0.0001783,2]
[365248079,1749563441873,-253.17334362,0.0001783,2]
[365248081,1749563441882,-500.0,0.0001783,2]
[365248083,1749563441892,-500.0,0.0001783,2]
[365248085,1749563441901,-500.0,0.0001783,2]
[365248087,1749563441911,-500.0,0.0001783,2]
[365248089,1749563441920,-2524.82941417,0.00017842,2]
[365248091,1749563441929,-420.0,0.00017843,2]
[365248093,1749563441939,-1000.0,0.00017843,2]
[365248095,1749563441948,-169.09,0.00017849,2]
[365248097,1749563441958,-1604.19639824,0.00017855,2]
[365248099,1749563441967,-500.0,0.00017863,2]
[365248101,1749563441980,-2618.2481025,0.00017897,2]
[365248103,1749563441989,-3404.55,0.000179,2]
[365248105,1749563441999,-8986.22,0.000179,2]
[365248107,1749563442008,-514.98858581,0.000179,2]
[365248109,1749563442018,-514.98858562,0.000179,2]
[365248111,1749563442027,-514.98858562,0.000179,2]
[365248113,1749563442036,-514.98858562,0.000179,2]
[365248115,1749563442047,-514.98858562,0.000179,2]
[365248117,1749563442056,-514.98858562,0.000179,2]
[365248119,1749563442065,-514.98858562,0.000179,2]
[365248121,1749563442074,-490.0,0.00017917,2]
[365248123,1749563442084,-607.13,0.00017917,2]
[365248125,1749563442093,-490.0,0.00017917,2]
[365248127,1749563442103,-490.0,0.00017917,2]
[365248129,1749563442112,-490.0,0.00017917,2]
[365248131,1749563442123,-654.31,0.00017917,2]
[365248133,1749563442133,-778.24,0.00017917,2]
[365248135,1749563442145,-2525.9,0.00017917,2]
[365248137,1749563442154,-490.0,0.00017917,2]
[365248139,1749563442164,-490.0,0.00017917,2]
[365248141,1749563442173,-490.0,0.00017917,2]
[365248143,1749563442183,-490.0,0.00017917,2]
[365248145,1749563442192,-1680.0,0.00017931,2]
[365248147,1749563442201,-169.17,0.00017948,2]
[365248149,1749563442211,-500.0,0.00017951,2]
[365248151,1749563442220,-2715.12328229,0.00017952,2]
[365248153,1749563442229,-514.98858562,0.00017962,2]
[365248155,1749563442238,-600.0,0.0001799,4]
[365248157,1749563442247,-300.0,0.0001799,2]
[365248159,1749563442256,-500.0,0.00017999,2]
[365248161,1749563442264,-10440.2649846,0.00018,2]
[365248163,1749563442278,-4952.5950154,0.00018,2]
[365248165,1749563442287,-3547.89777189,0.00018,2]
[365248167,1749563442296,-2815.58284374,0.00018007,2]
[365248169,1749563442306,-314.0,0.00018045,4]
[365248171,1749563442315,-2919.75940895,0.00018062,2]
[365248173,1749563442324,-490.0,0.00018082,2]
[365248175,1749563442334,-607.13,0.00018082,2]
[365248177,1749563442343,-490.0,0.00018082,2]
[365248179,1749563442353,-490.0,0.00018082,2]
[365248181,1749563442362,-490.0,0.00018082,2]
[365248183,1749563442371,-654.31,0.00018082,2]
[365248185,1749563442381,-778.24,0.00018082,2]
[365248187,1749563442390,-2525.9,0.00018082,2]
[365248189,1749563442400,-490.0,0.00018082,2]
[365248191,1749563442409,-490.0,0.00018082,2]
[365248193,1749563442418,-490.0,0.00018082,2]
[365248195,1749563442427,-490.0,0.00018082,2]
[365248197,1749563442437,-3027.79050709,0.00018117,2]
[365248199,1749563442449,-1295.25471441,0.00018118,2]
[365248201,1749563442458,-514.98858562,0.00018123,2]
[365248203,1749563442467,-3139.81875585,0.00018172,2]
[365248205,1749563442476,-3404.55,0.000182,2]
[365248207,1749563442485,-2510.91616825,0.000182,2]
[365248209,1749563442496,-547.3,0.000182,2]
[365248211,1749563442506,-5928.00383175,0.000182,2]
[365248213,1749563442515,-500.0,0.00018218,2]
[365248215,1749563442525,-500.0,0.00018218,2]
[365248217,1749563442534,-500.0,0.00018218,2]
[365248219,1749563442543,-500.0,0.00018218,2]
[365248221,1749563442551,-500.0,0.00018218,2]
[365248243,1749563442732,-500.0,0.00018218,2]
[365248246,1749563442746,-161.40784034,0.00018218,2]
[365248248,1749563442755,-500.0,0.00018218,2]
[365248250,1749563442764,-500.0,0.00018218,2]
[365248252,1749563442774,-500.0,0.00018218,2]
[365248254,1749563442783,-163.04973825,0.00018218,2]
[365248256,1749563442792,-500.25226326,0.00018218,2]
[365248258,1749563442801,-502.34995967,0.00018218,2]
[365248260,1749563442810,-500.0,0.00018218,2]
[365248263,1749563442819,-500.0,0.00018218,2]
[365248266,1749563442828,-317.54218838,0.00018218,2]
[365248269,1749563442837,-500.0,0.00018218,2]
[365248271,1749563442846,-3255.99204981,0.00018227,2]
[365248273,1749563442856,-1000.0,0.00018234,2]
[365248275,1749563442866,-490.0,0.00018246,2]
[365248279,1749563442875,-607.13,0.00018246,2]
[365248283,1749563442885,-490.0,0.00018246,2]
[365248288,1749563442895,-490.0,0.00018246,2]
[365248293,1749563442909,-490.0,0.00018246,2]
[365248298,1749563442920,-654.31,0.00018246,2]
[365248303,1749563442930,-778.24,0.00018246,2]
[365248307,1749563442941,-2525.9,0.00018246,2]
[365248310,1749563442952,-490.0,0.00018246,2]
[365248313,1749563442968,-490.0,0.00018246,2]
[365248316,1749563442980,-490.0,0.00018246,2]
[365248319,1749563442990,-3376.46375566,0.00018282,2]
[365248321,1749563443001,-514.98858562,0.00018285,2]
[365248325,1749563443013,-1295.25471433,0.00018316,2]
[365248328,1749563443025,-205.55,0.00018317,2]
[365248330,1749563443035,-3501.39291462,0.00018337,2]
[365248331,1749563443045,-3630.94445246,0.00018392,2]
[365248333,1749563443055,-490.0,0.0001841,2]
[365248335,1749563443066,-607.13,0.0001841,2]
[365248337,1749563443076,-490.0,0.0001841,2]
[365248339,1749563443087,-490.0,0.0001841,2]
[365248340,1749563443097,-490.0,0.0001841,2]
[365248341,1749563443106,-654.31,0.0001841,2]
[365248342,1749563443115,-778.24,0.0001841,2]
[365248343,1749563443123,-2525.9,0.0001841,2]
[365248344,1749563443132,-490.0,0.0001841,2]
[365248345,1749563443141,-490.0,0.0001841,2]
[365248346,1749563443151,-490.0,0.0001841,2]
[365248347,1749563443160,-500.0,0.0001841,2]
[365248348,1749563443170,-514.98858562,0.00018446,2]
[365248349,1749563443178,-3765.2893972,0.00018447,2]
[365248350,1749563443187,-314.0,0.00018487,4]
[365248351,1749563443196,-1295.25471433,0.00018514,2]
[365248352,1749563443206,-1403.36,0.00018514,2]
[365248353,1749563443215,-461.25,0.00018519,2]
[365248355,1749563443224,-490.0,0.00018575,2]
[365248357,1749563443233,-607.13,0.00018575,2]
[365248359,1749563443242,-490.0,0.00018575,2]
[365248361,1749563443251,-490.0,0.00018575,2]
[365248363,1749563443261,-490.0,0.00018575,2]
[365248365,1749563443272,-654.31,0.00018575,2]
[365248367,1749563443282,-778.24,0.00018575,2]
[365248369,1749563443291,-2525.9,0.00018575,2]
[365248371,1749563443300,-490.0,0.00018575,2]
[365248373,1749563443309,-490.0,0.00018575,2]
[365248375,1749563443318,-490.0,0.00018575,2]
[365248377,1749563443327,-514.98858562,0.00018608,2]
[365248379,1749563443337,-3404.55,0.000187,2]
[365248381,1749563443346,-8986.22,0.000187,2]
[365248383,1749563443355,-1295.25471433,0.00018712,2]
[365248385,1749563443364,-629.33,0.00018739,2]
[365248387,1749563443373,-607.13,0.00018739,2]
[365248389,1749563443383,-490.0,0.00018739,2]
[365248391,1749563443393,-490.0,0.00018739,2]
[365248393,1749563443401,-490.0,0.00018739,2]
[365248395,1749563443411,-654.31,0.00018739,2]
[365248397,1749563443421,-778.24,0.00018739,2]
[365248399,1749563443430,-2525.9,0.00018739,2]
[365248401,1749563443438,-490.0,0.00018739,2]
[365248403,1749563443448,-490.0,0.00018739,2]
[365248405,1749563443457,-490.0,0.00018739,2]
[365248406,1749563443467,-867.72711631,0.0001876,2]
[365248408,1749563443476,-500.0,0.00018766,2]
[365248410,1749563443485,-1000.0,0.00018766,2]
[365248412,1749563443495,-514.98858562,0.00018769,2]
[365248414,1749563443504,-760.0,0.000188,4]
[365248416,1749563443514,-215.0738,0.00018826,2]
[365248418,1749563443532,-156.587,0.00018826,2]
[365248420,1749563443542,-945.0,0.00018878,2]
[365248422,1749563443551,-3330.0,0.00018878,2]
[365248424,1749563443560,-637.0,0.00018878,2]
[365248426,1749563443569,-802.0,0.00018878,2]
[365248428,1749563443578,-1159.0,0.00018878,2]
[365248430,1749563443587,-590.0,0.00018878,2]
[365248432,1749563443596,-2001.0,0.00018878,2]
[365248434,1749563443605,-927.0,0.00018878,2]
[365248436,1749563443614,-558.0,0.00018878,2]
[365248438,1749563443623,-1275.0,0.00018878,2]
[365248440,1749563443631,-1256.0,0.00018878,2]
[365248442,1749563443640,-4085.0,0.00018878,2]
[365248443,1749563443649,-7064.0,0.00018878,2]
[365248445,1749563443659,-853.0,0.00018878,2]
[365248448,1749563443668,-155.0,0.00018878,2]
[365248449,1749563443677,-883.0,0.00018878,2]
[365248451,1749563443686,-250.0,0.00018882,2]
[365248453,1749563443696,-500.0,0.000189,2]
[365248455,1749563443705,-1379.1468,0.000189,2]
[365248458,1749563443714,-1000.0,0.000189,6]
[365248459,1749563443723,-607.13,0.00018904,2]
[365248461,1749563443733,-556.60940001,0.00018904,2]
[365248464,1749563443742,-490.0,0.00018904,2]
[365248465,1749563443752,-490.0,0.00018904,2]
[365248468,1749563443761,-654.31,0.00018904,2]
[365248469,1749563443772,-778.24,0.00018904,2]
[365248471,1749563443781,-2525.9,0.00018904,2]
[365248473,1749563443790,-490.0,0.00018904,2]
[365248476,1749563443800,-490.0,0.00018904,2]
[365248478,1749563443809,-490.0,0.00018904,2]
[365248479,1749563443818,-500.0,0.00018904,2]
[365248481,1749563443828,-1295.25471433,0.0001891,2]
[365248483,1749563443837,-314.0,0.00018928,5]
[365248485,1749563443847,-514.98858562,0.00018931,2]
[365248487,1749563443856,-500.0,0.00018973,2]
[365248490,1749563443866,-500.0,0.00018973,2]
[365248491,1749563443875,-500.0,0.00018973,2]
[365248493,1749563443884,-500.0,0.00018973,2]
[365248495,1749563443893,-500.0,0.00018973,2]
[365248497,1749563443904,-201.55085172,0.00018973,2]
[365248499,1749563443916,-500.0,0.00018973,2]
[365248501,1749563443927,-528.79315848,0.00018973,2]
[365248503,1749563443939,-452.00655032,0.00018973,2]
[365248506,1749563443956,-500.0,0.00018973,2]
[365248508,1749563443967,-560.76526665,0.00018999,2]
[365248510,1749563443982,-500.0,0.00018999,2]
[365248512,1749563443992,-277.78,0.00019,2]
[365248514,1749563444002,-277.78,0.00019,2]
[365248516,1749563444012,-2790.83,0.00019,2]
[365248518,1749563444024,-2790.83,0.00019,2]
[365248520,1749563444034,-1500.0,0.00019,4]
[365248522,1749563444043,-3404.55,0.00019,2]
[365248524,1749563444054,-3404.55,0.00019,2]
[365248526,1749563444064,-8353.12,0.00019,20]
[365248528,1749563444074,-8986.22,0.00019,2]
[365248530,1749563444083,-8986.22,0.00019,2]
[365248532,1749563444093,-500.0,0.00019,7]
[365248534,1749563444105,-196.7,0.00019,7]
[365248536,1749563444115,-151.0,0.00019,7]
[365248538,1749563444124,-500.0,0.00019,7]
[365248540,1749563444134,-187.4,0.00019,7]
[365248542,1749563444143,-256.24,0.00019,7]
[365248544,1749563444153,-500.0,0.00019,7]
[365248546,1749563444162,-500.0,0.00019,7]
[365248548,1749563444171,-500.0,0.00019,7]
[365248550,1749563444181,-407.77,0.00019,7]
[365248552,1749563444190,-75458.34208706,0.00019,2]
[365248554,1749563444199,-183.53,0.00019,7]
[365248556,1749563444209,-250.0,0.00019,2]
[365248558,1749563444219,-2000.0,0.00019,6]
[365248560,1749563444228,-1000.0,0.00019,2]
[365248562,1749563444238,-607.13,0.00019068,2]
[365248564,1749563444248,-490.0,0.00019068,2]
[365248566,1749563444257,-490.0,0.00019068,2]
[365248568,1749563444270,-654.31,0.00019068,2]
[365248570,1749563444280,-778.24,0.00019068,2]
[365248572,1749563444290,-2525.9,0.00019068,2]
[365248574,1749563444300,-479.59422176,0.00019068,2]
[365248576,1749563444310,-490.0,0.00019068,2]
[365248578,1749563444320,-490.0,0.00019068,2]
[365248580,1749563444330,-514.98858562,0.00019092,2]
[365248582,1749563444340,-3000.0,0.000191,6]
[365248584,1749563444350,-1295.25471433,0.00019108,2]
[365248586,1749563444360,-152.0,0.00019114,7]
[365248588,1749563444369,-563.97928574,0.00019178,2]
[365248590,1749563444380,-500.0,0.00019178,2]
[365248592,1749563444390,-500.0,0.00019178,2]
[365248594,1749563444400,-500.0,0.00019178,2]
[365248596,1749563444411,-500.0,0.00019178,2]
[365248598,1749563444421,-500.0,0.00019178,2]
[365248600,1749563444431,-500.0,0.00019178,2]
[365248602,1749563444441,-309.50832698,0.00019178,2]
[365248604,1749563444451,-2486.71,0.00019178,2]
[365248606,1749563444461,-2486.71,0.00019178,2]
[365248608,1749563444471,-2486.71,0.00019178,2]
[365248610,1749563444482,-2486.71,0.00019178,2]
[365248612,1749563444492,-2486.71,0.00019178,2]
[365248614,1749563444502,-2486.71,0.00019178,2]
[365248616,1749563444513,-2486.71,0.00019178,2]
[365248618,1749563444527,-2486.71,0.00019178,2]
[365248620,1749563444536,-2486.71,0.00019178,2]
[365248622,1749563444546,-2486.71,0.00019178,2]
[365248624,1749563444556,-2486.71,0.00019178,2]
[365248626,1749563444566,-2486.71,0.00019178,2]
[365248628,1749563444576,-2486.71,0.00019178,2]
[365248629,1749563444586,-2486.71,0.00019178,2]
[365248631,1749563444596,-2486.71,0.00019178,2]
[365248633,1749563444605,-2486.71,0.00019178,2]
[365248635,1749563444615,-2486.71,0.00019178,2]
[365248637,1749563444625,-151.0,0.00019178,2]
[365248639,1749563444634,-270.08,0.00019178,2]
[365248641,1749563444643,-200.41,0.00019179,2]
[365248643,1749563444653,-170.69,0.00019179,2]
[365248645,1749563444663,-1163.59,0.00019187,2]
[365248647,1749563444672,-1163.59,0.00019187,2]
[365248649,1749563444682,-1163.59,0.00019187,2]
[365248651,1749563444692,-4000.0,0.000192,7]
[365248653,1749563444702,-607.13,0.00019232,2]
[365248655,1749563444712,-2486.71,0.00019232,2]
[365248657,1749563444721,-490.0,0.00019232,2]
[365248659,1749563444731,-490.0,0.00019232,2]
[365248661,1749563444741,-654.31,0.00019232,2]
[365248663,1749563444751,-778.24,0.00019232,2]
[365248665,1749563444761,-2525.9,0.00019232,2]
[365248667,1749563444774,-490.0,0.00019232,2]
[365248669,1749563444785,-178.80870311,0.00019232,2]
[365248671,1749563444794,-514.98858562,0.00019254,2]
[365248673,1749563444803,-980.94485654,0.00019279,2]
[365248675,1749563444813,-5100.0,0.000193,7]
[365248677,1749563444822,-833.29909032,0.000193,7]
[365248679,1749563444832,-1295.25471433,0.00019306,2]
[365248681,1749563444841,-1500.0,0.00019314,2]
[365248683,1749563444852,-314.0,0.0001937,6]
[365248685,1749563444861,-438.06718105,0.00019389,2]
[365248687,1749563444871,-1037.00642053,0.00019396,2]
[365248689,1749563444881,-607.13,0.00019397,2]
[365248691,1749563444890,-2486.71,0.00019397,2]
[365248693,1749563444900,-490.0,0.00019397,2]
[365248695,1749563444910,-484.45722698,0.00019397,2]
[365248697,1749563444919,-654.31,0.00019397,2]
[365248699,1749563444930,-778.24,0.00019397,2]
[365248701,1749563444942,-2525.9,0.00019397,2]
[365248703,1749563444952,-490.0,0.00019397,2]
[365248705,1749563444963,-1000.0,0.000194,7]
[365248707,1749563444976,-514.98858562,0.00019415,2]
[365248709,1749563444985,-298.77669866,0.00019421,2]
[365248711,1749563444996,-196.21852891,0.00019425,2]
[365248713,1749563445006,-152.0,0.0001944,8]
[365248716,1749563445020,-169.17,0.00019444,2]
[365248717,1749563445031,-1279.847,0.00019486,2]
[365248720,1749563445041,-1000.0,0.000195,7]
[365248721,1749563445051,-587.0,0.00019501,2]
[365248724,1749563445062,-1295.25471433,0.00019504,2]
[365248725,1749563445072,-591.1865361,0.00019521,2]
[365248728,1749563445082,-501.23429351,0.00019521,2]
[365248730,1749563445092,-1000.0,0.00019521,2]
[365248732,1749563445102,-511.68700359,0.00019521,2]
[365248734,1749563445112,-609.0,0.00019534,2]
[365248736,1749563445122,-150.0,0.00019534,2]
[365248738,1749563445131,-150.0,0.00019534,2]
[365248740,1749563445140,-150.0,0.00019534,2]
[365248742,1749563445149,-150.90172218,0.00019534,2]
[365248744,1749563445158,-150.0,0.00019534,2]
[365248745,1749563445167,-150.0,0.00019534,2]
[365248747,1749563445177,-150.0,0.00019534,2]
[365248749,1749563445186,-150.0,0.00019534,2]
[365248751,1749563445196,-150.0,0.00019534,2]
[365248754,1749563445205,-150.0,0.00019534,2]
[365248756,1749563445214,-150.0,0.00019534,2]
[365248758,1749563445223,-500.0,0.00019534,2]
[365248760,1749563445233,-150.0,0.00019534,2]
[365248761,1749563445242,-150.0,0.00019534,2]
[365248763,1749563445251,-150.0,0.00019534,2]
[365248765,1749563445261,-500.0,0.00019534,2]
[365248767,1749563445273,-204.04309163,0.00019534,2]
[365248769,1749563445282,-150.0,0.00019534,2]
[365248771,1749563445292,-607.13,0.00019561,2]
[365248773,1749563445301,-2486.71,0.00019561,2]
[365248775,1749563445310,-581.01581375,0.00019561,2]
[365248778,1749563445321,-654.31,0.00019561,2]
[365248780,1749563445330,-778.24,0.00019561,2]
[365248782,1749563445340,-2525.9,0.00019561,2]
[365248784,1749563445349,-490.0,0.00019561,2]
[365248786,1749563445359,-150.0,0.00019561,2]
[365248788,1749563445369,-150.0,0.00019561,2]
[365248790,1749563445378,-155.8635147,0.00019561,2]
[365248791,1749563445387,-171.24908528,0.00019561,2]
[365248793,1749563445396,-150.0,0.00019561,2]
[365248795,1749563445406,-150.0,0.00019561,2]
[365248797,1749563445416,-150.0,0.00019561,2]
[365248799,1749563445425,-150.0,0.00019561,2]
[365248801,1749563445435,-500.0,0.00019561,2]
[365248803,1749563445444,-150.0,0.00019561,2]
[365248805,1749563445453,-150.0,0.00019561,2]
[365248807,1749563445462,-500.0,0.00019561,2]
[365248809,1749563445472,-514.98858562,0.00019577,2]
[365248811,1749563445481,-150.0,0.00019589,2]
[365248813,1749563445491,-150.0,0.00019589,2]
[365248815,1749563445500,-150.0,0.00019589,2]
[365248817,1749563445509,-150.0,0.00019589,2]
[365248819,1749563445520,-150.0,0.00019589,2]
[365248821,1749563445529,-150.0,0.00019589,2]
[365248823,1749563445538,-500.0,0.00019589,2]
[365248825,1749563445547,-200.0,0.00019589,2]
[365248827,1749563445556,-200.0,0.00019589,2]
[365248829,1749563445565,-201.33544562,0.00019589,2]
[365248831,1749563445574,-238.66530525,0.00019591,2]
[365248832,1749563445583,-238.66530525,0.00019594,2]
[365248834,1749563445592,-1063.272921,0.00019599,2]
[365248836,1749563445601,-500.0,0.00019599,2]
[365248838,1749563445611,-1000.0,0.000196,7]
[365248840,1749563445620,-150.0,0.00019616,2]
[365248842,1749563445629,-150.0,0.00019616,2]
[365248844,1749563445638,-150.0,0.00019616,2]
[365248846,1749563445648,-150.0,0.00019616,2]
[365248848,1749563445657,-252.89912974,0.00019616,2]
[365248849,1749563445666,-150.0,0.00019616,2]
[365248850,1749563445675,-500.0,0.00019616,2]
[365248851,1749563445685,-250.0,0.00019644,2]
[365248853,1749563445693,-250.0,0.00019644,2]
[365248855,1749563445703,-250.0,0.00019644,2]
[365248857,1749563445712,-250.0,0.00019644,2]
[365248859,1749563445721,-150.0,0.00019644,2]
[365248861,1749563445731,-500.0,0.00019644,2]
[365248863,1749563445740,-438.06718105,0.00019644,2]
[365248865,1749563445749,-150.0,0.00019671,2]
[365248867,1749563445758,-500.0,0.00019671,2]
[365248869,1749563445770,-2351.0,0.00019696,2]
[365248871,1749563445779,-500.0,0.00019698,2]
[365248873,1749563445788,-4079.36773258,0.000197,2]
[365248875,1749563445797,-1000.0,0.000197,7]
[365248877,1749563445807,-1295.25471433,0.00019702,2]
[365248880,1749563445817,-605.32,0.00019703,2]
[365248883,1749563445826,-500.0,0.00019726,2]
[365248886,1749563445836,-607.13,0.00019726,2]
[365248889,1749563445845,-2486.71,0.00019726,2]
[365248892,1749563445855,-654.31,0.00019726,2]
[365248895,1749563445865,-778.24,0.00019726,2]
[365248899,1749563445875,-2525.9,0.00019726,2]
[365248902,1749563445884,-490.0,0.00019726,2]
[365248905,1749563445894,-500.0,0.00019726,2]
[365248908,1749563445906,-156.587,0.00019726,2]
[365248911,1749563445916,-514.98858562,0.00019738,2]
[365248914,1749563445926,-500.0,0.00019753,2]
[365248917,1749563445939,-325.91375356,0.00019755,2]
[365248920,1749563445948,-152.0,0.00019765,9]
[365248922,1749563445959,-500.0,0.00019781,2]
[365248924,1749563445970,-1351.0,0.000198,7]
[365248926,1749563445982,-1000.0,0.00019801,2]
[365248928,1749563445991,-500.0,0.00019808,2]
[365248930,1749563446001,-314.0,0.00019811,6]
[365248932,1749563446011,-1000.0,0.00019826,2]
[365248934,1749563446023,-169.09,0.00019832,2]
[365248936,1749563446032,-500.0,0.00019835,2]
[365248938,1749563446042,-500.0,0.00019838,2]
[365248940,1749563446052,-5023.12370745,0.00019838,2]
[365248942,1749563446061,-500.0,0.00019839,2]
[365248944,1749563446070,-200.0,0.00019839,2]
[365248946,1749563446079,-5800.0,0.00019858,2]
[365248948,1749563446089,-2013.60649198,0.00019862,2]
[365248950,1749563446099,-500.0,0.00019863,2]
[365248952,1749563446109,-5800.0,0.00019866,2]
[365248954,1749563446120,-5800.0,0.00019875,2]
[365248955,1749563446130,-5800.0,0.00019883,2]
[365248958,1749563446139,-161.20852273,0.00019886,2]
[365248960,1749563446149,-504.97,0.00019889,2]
[365248962,1749563446160,-607.13,0.0001989,2]
[365248964,1749563446169,-2486.71,0.0001989,2]